bitfinex/quotes_SOLUSD_20241209
["timestamp","ask_amount","ask_price","bid_price","bid_amount"]
[1733775374942,4.8746,223.7,223.63,35.38858595]
[1733775375256,5.0,223.82,223.54,0.1254]
[1733775375257,4.8746,223.68,223.55,27.1]
[1733775375416,4.8746,223.71,223.7,5.0]
[1733775375620,4.8746,223.87,223.71,27.1]
[1733775375855,4.8746,223.89,223.73,27.1]
[1733775376026,4.8746,223.81,223.64,5.0]
[1733775376232,4.8746,223.72,223.66,35.38858595]
[1733775376446,4.8746,223.69,223.62,35.38858595]
[1733775376620,4.8746,223.66,223.62,35.38858595]
[1733775376955,4.8746,223.86,223.76,13.43]
[1733775377155,4.8746,223.88,223.85,35.38858595]
[1733775377340,4.8746,223.93,223.87,35.38858595]
[1733775377528,4.8746,223.93,223.88,35.51407595]
[1733775377730,4.8746,223.88,223.77,35.38858595]
[1733775377922,4.8746,223.86,223.8,35.38858595]
[1733775378142,4.8746,223.9,223.84,35.38858595]
[1733775378360,4.8746,224.0,223.9,0.12549]
[1733775378521,4.8746,223.97,223.88,35.38858595]
[1733775378721,4.8746,223.87,223.82,35.38858595]
[1733775378951,5.0,224.48,224.1,23.776884]
[1733775379152,5.0,224.53,224.35,35.38858595]
[1733775379358,5.0,224.57,224.28,40.65549]
[1733775379560,5.0,224.59,224.47,35.38858595]
[1733775379739,5.0,224.36,224.3,70.0]
[1733775380061,5.0,224.43,224.15,13.43]
[1733775380224,5.0,224.47,224.19,13.43]
[1733775380549,5.0,224.49,224.28,0.12549]
[1733775380720,5.0,224.38,224.22,35.38858595]
[1733775380920,5.0,224.24,224.1,35.38858595]
[1733775381144,5.0,224.21,224.05,13.43]
[1733775381343,5.0,224.2,224.02,35.38858595]
[1733775381552,5.0,224.18,224.04,35.38858595]
[1733775381728,5.0,224.27,224.14,35.38858595]
[1733775381933,5.0,224.21,224.05,35.38858595]
[1733775382276,5.0,224.24,224.03,35.38858595]
[1733775382445,10.0,224.2,223.99,35.38858595]
[1733775382750,5.0,224.01,223.86,35.38858595]
[1733775382958,5.0,224.05,223.86,35.38858595]
[1733775383123,5.0,223.96,223.75,35.38858595]
[1733775383324,5.0,223.98,223.87,35.38858595]
[1733775383556,5.0,224.07,223.84,35.38858595]
[1733775383728,5.0,224.07,223.72,70.0]
[1733775383729,23.776884,224.1,223.9,35.38858595]
[1733775383929,5.0,224.07,223.88,35.38858595]
[1733775384155,5.0,224.02,223.86,35.38858595]
[1733775384466,5.0,223.92,223.78,35.38858595]
[1733775384762,5.0,223.89,223.7,35.38858595]
[1733775384972,5.0,223.89,223.74,35.38858595]
[1733775385131,23.776884,223.98,223.83,35.38858595]
[1733775385333,5.0,223.99,223.81,35.38858595]
[1733775385630,5.0,223.99,223.67,5.0]
[1733775385631,5.0,223.87,223.67,35.38858595]
[1733775385854,23.776884,223.87,223.69,35.38858595]
[1733775386161,5.5872,224.2,223.69,35.38858595]
[1733775386162,5.0,223.96,223.77,13.43]
[1733775386365,5.0,224.0,223.84,35.38858595]
[1733775386533,5.0,224.09,223.88,35.38858595]
[1733775386730,5.0,224.16,223.94,35.38858595]
[1733775386931,5.0,224.16,223.83,27.1]
[1733775386932,10.0,224.17,223.97,0.12549]
[1733775387154,5.0,224.08,223.9,35.38858595]
[1733775387372,5.0,224.08,223.78,5.0]
[1733775387373,5.0,224.03,223.88,0.12549]
[1733775387680,5.0,224.05,223.9,35.38858595]
[1733775387967,5.0,224.01,223.84,35.38858595]
[1733775388266,5.5872,224.2,223.74,35.38858595]
[1733775388267,5.0,223.92,223.74,35.38858595]
[1733775388465,5.0,223.89,223.72,35.38858595]
[1733775388669,5.0,223.96,223.8,35.38858595]
[1733775388970,5.0,223.96,223.59,63.25004519]
[1733775388971,5.0,223.86,223.65,35.38858595]
[1733775389148,5.0,223.87,223.74,35.38858595]
[1733775389347,5.0,223.98,223.78,35.38858595]
[1733775389551,5.0,223.94,223.76,35.38858595]
[1733775389751,10.0,223.97,223.76,35.38858595]
[1733775389938,10.0,223.97,223.78,35.38858595]
[1733775390271,5.0,223.95,223.82,35.38858595]
[1733775390439,5.0,223.91,223.76,35.38858595]
[1733775390636,5.0,224.0,223.78,35.38858595]
[1733775390870,5.0,224.02,223.83,0.12549]
[1733775391179,5.0,223.98,223.76,35.38858595]
[1733775391334,5.0,223.98,223.44,331.3744843]
[1733775391335,5.0,223.94,223.74,35.38858595]
[1733775391538,10.0,223.93,223.74,35.38858595]
[1733775391768,5.0,223.96,223.74,35.38858595]
[1733775392075,10.0,224.03,223.84,35.38858595]
[1733775392246,5.0,224.01,223.82,35.38858595]
[1733775392448,33.776884,223.97,223.74,35.38858595]
[1733775392650,23.776884,223.94,223.74,35.38858595]
[1733775392863,23.776884,223.97,223.81,35.38858595]
[1733775393044,23.776884,223.98,223.81,35.38858595]
[1733775393576,5.0,224.01,223.83,35.38858595]
[1733775393865,23.776884,224.0,223.85,35.38858595]
[1733775394068,28.776884,223.98,223.79,35.38858595]
[1733775394281,23.776884,223.91,223.77,35.38858595]
[1733775394447,23.776884,223.91,223.73,35.38858595]
[1733775394779,23.776884,223.83,223.67,35.38858595]
[1733775394944,23.776884,223.9,223.73,35.38858595]
[1733775395147,5.0,223.98,223.79,35.38858595]
[1733775395356,23.776884,223.97,223.81,35.38858595]
[1733775395646,23.776884,223.97,223.64,5.0]
[1733775395647,23.776884,223.92,223.69,70.0]
[1733775395849,23.776884,223.93,223.76,35.38858595]
[1733775396067,23.776884,223.9,223.74,35.38858595]
[1733775396255,5.0,223.93,223.77,0.12549]
[1733775396462,23.776884,223.92,223.72,35.38858595]
[1733775396782,23.776884,223.9,223.72,35.38858595]
[1733775397089,5.0,223.92,223.73,35.38858595]
[1733775397300,23.776884,223.95,223.75,35.38858595]
[1733775397572,17.873589,224.05,223.6,5.0]
[1733775397573,5.0,223.86,223.71,35.38858595]
[1733775397741,5.0,223.8,223.65,35.38858595]
[1733775397943,23.776884,223.82,223.65,35.38858595]
[1733775398144,23.776884,223.79,223.65,35.38858595]
[1733775398671,5.0,223.73,223.55,35.38858595]
[1733775399279,23.776884,223.79,223.63,31.86499982]
[1733775399441,5.0,223.78,223.63,31.86499982]
[1733775399776,23.776884,223.78,223.61,31.86499982]
[1733775399942,23.776884,223.76,223.59,31.86499982]
[1733775400146,23.776884,223.73,223.6,0.67050857]
[1733775400755,23.776884,223.73,223.58,0.67062367]
[1733775400955,5.4113,223.85,223.59,31.86499982]
[1733775400956,5.0,223.76,223.59,31.86499982]
[1733775401146,23.776884,223.73,223.53,31.86499982]
[1733775401352,5.0,223.72,223.54,0.67065065]
[1733775401678,23.776884,223.71,223.54,0.67065065]
[1733775402253,0.83830726,223.7,223.41,75.0]
[1733775402459,5.0,223.74,223.56,31.86499982]
[1733775402748,23.776884,223.71,223.57,0.67059642]
[1733775402949,23.776884,223.69,223.57,0.67059642]
[1733775403148,0.83844244,223.69,223.58,0.67075395]
[1733775403378,23.776884,223.75,223.58,0.67075395]
[1733775403682,0.83818256,223.74,223.58,32.53575377]
[1733775403843,0.83825258,223.79,223.6,31.86499982]
[1733775404050,5.0,223.78,223.61,0.67048766]
[1733775404358,22.98125233,224.2,223.61,0.67048766]
[1733775404359,0.83822326,223.77,223.61,0.67048766]
[1733775404558,0.83822326,223.77,223.62,31.86499982]
[1733775404860,0.83822326,223.77,223.61,0.67048766]
[1733775404861,0.8380362,223.8,223.66,31.86499982]
[1733775405063,5.4113,223.85,223.67,0.67031222]
[1733775405064,0.83789028,223.84,223.67,0.67031222]
[1733775405571,5.0,223.81,223.67,0.67031222]
[1733775405770,0.83788933,223.84,223.68,31.99048982]
[1733775406075,0.83788933,223.84,223.69,0.67020098]
[1733775406445,5.4113,223.85,223.72,31.86499982]
[1733775406649,0.83758847,223.94,223.78,31.86499982]
[1733775406955,0.83738731,224.02,223.82,31.86499982]
[1733775407166,0.83738731,224.02,223.84,31.86499982]
[1733775407372,0.83738731,224.02,223.85,0.66971583]
[1733775407969,5.83738731,224.02,223.85,0.66971583]
[1733775408151,5.83738731,224.02,223.75,0.12549]
[1733775408152,5.0,224.01,223.81,0.66985316]
[1733775408349,0.83729619,224.0,223.82,0.12549]
[1733775408575,0.83729619,224.0,223.83,0.66979205]
[1733775408978,5.83729619,224.0,223.83,0.66979205]
[1733775409288,0.83729619,224.0,223.83,0.66979205]
[1733775409465,5.0,223.98,223.83,0.66979205]
[1733775409659,5.0,223.98,223.7,70.0]
[1733775409660,0.83737927,223.97,223.81,0.66990342]
[1733775409859,5.0,223.91,223.71,0.66997148]
[1733775410062,20.0,223.88,223.71,0.66997148]
[1733775410371,20.0,223.8,223.69,0.67028578]
[1733775410751,23.776884,223.86,223.69,0.67028578]
[1733775410892,23.776884,223.86,223.59,0.67028173]
[1733775410893,20.0,223.79,223.59,0.67028173]
[1733775411095,23.776884,223.74,223.59,0.67028173]
[1733775411304,20.0,223.75,223.59,32.53528155]
[1733775411459,24.61498921,223.74,223.59,0.67028173]
[1733775411660,20.0,223.71,223.59,0.67028173]
[1733775411866,20.0,223.71,223.55,31.86499982]
[1733775411867,20.0,223.71,223.56,0.67061514]
[1733775412781,24.61514348,223.7,223.56,0.67061514]
[1733775412967,0.68282655,223.56,223.53,31.86499982]
[1733775413458,0.68282655,223.56,223.51,31.86499982]
[1733775413790,0.8384399,223.66,223.56,0.12549]
[1733775413972,0.83756973,224.01,223.79,70.0]
[1733775414299,5.83686309,224.0,223.7,31.86499982]
[1733775414474,5.0,223.97,223.7,31.86499982]
[1733775414673,0.83758757,223.96,223.73,0.12549]
[1733775414896,0.12549,223.9,223.65,31.86499982]
[1733775415064,0.96340828,223.9,223.66,0.12549]
[1733775415265,5.0,223.89,223.66,0.25098]
[1733775415578,23.776884,223.87,223.66,0.25098]
[1733775415896,23.776884,223.85,223.66,0.25098]
[1733775416206,20.83777668,223.84,223.69,31.86499982]
[1733775416385,20.0,223.84,223.69,31.86499982]
[1733775416897,23.776884,223.85,223.71,31.86499982]
[1733775417199,5.0,223.97,223.74,0.12549]
[1733775417378,0.8375416,223.96,223.71,31.86499982]
[1733775417577,5.0,223.94,223.72,0.12549]
[1733775417785,0.83764111,223.93,223.71,31.86499982]
[1733775417988,0.12549,223.92,223.71,31.86499982]
[1733775418241,0.83769429,223.91,223.71,31.86499982]
[1733775418573,23.776884,223.9,223.69,45.29499982]
[1733775418792,20.0,223.87,223.69,45.29499982]
[1733775418996,0.83775751,223.89,223.65,31.86499982]
[1733775418997,23.776884,223.81,223.65,31.86499982]
[1733775419183,5.0,223.89,223.63,31.86499982]
[1733775419184,23.776884,223.77,223.63,31.86499982]
[1733775419390,23.776884,223.73,223.57,31.86499982]
[1733775419605,23.776884,223.69,223.55,31.86499982]
[1733775419783,20.0,223.66,223.55,31.86499982]
[1733775420115,5.0,223.79,223.39,5.0]
[1733775420116,23.776884,223.74,223.62,31.86499982]
[1733775420399,20.0,223.74,223.62,31.86499982]
[1733775420714,20.83805193,223.74,223.62,31.86499982]
[1733775420900,23.776884,223.73,223.6,31.86499982]
[1733775421199,23.776884,223.72,223.59,34.35947263]
[1733775421504,0.83819342,223.73,223.53,13.43]
[1733775421505,23.776884,223.7,223.57,34.35947263]
[1733775421871,20.0,223.65,223.49,34.35947263]
[1733775422096,20.0,223.65,223.41,34.35947263]
[1733775422097,20.0,223.61,223.47,34.35947263]
[1733775422306,20.0,223.61,223.45,34.35947263]
[1733775422497,0.83862077,223.6,223.38,34.89800333]
[1733775422720,23.776884,223.59,223.38,0.5385307]
[1733775423029,20.0,223.56,223.38,0.5385307]
[1733775423341,20.0,223.52,223.38,0.5385307]
[1733775423637,25.83919948,223.51,223.23,34.35947263]
[1733775423840,28.8189,223.47,223.16,97.1]
[1733775423996,20.0,223.43,223.18,34.35947263]
[1733775424197,36.10114862,223.72,223.5,70.0]
[1733775424414,36.10114862,223.72,223.25,5.0]
[1733775424415,0.83821571,223.65,223.25,5.0]
[1733775424621,0.83821571,223.65,223.36,34.35947263]
[1733775424924,10.8326,223.73,223.17,22.76813548]
[1733775424925,0.83877596,223.72,223.42,34.35947263]
[1733775425119,0.83877596,223.72,223.54,34.35947263]
[1733775425522,0.83877596,223.72,223.41,34.35947263]
[1733775425523,0.83877596,223.72,223.53,0.12549]
[1733775425762,28.00906548,223.8,223.66,34.35947263]
[1733775425917,0.83796807,223.85,223.67,0.25098]
[1733775426132,0.83766092,223.89,223.72,34.35947263]
[1733775426322,0.83760455,223.95,223.78,34.35947263]
[1733775426497,8.658,223.96,223.82,34.35947263]
[1733775426699,0.83740276,224.02,223.85,0.25098]
[1733775426943,0.8371074,224.06,223.89,0.25098]
[1733775427122,0.8371074,224.06,223.85,0.12549]
[1733775427123,5.6825,224.07,223.91,24.027864]
[1733775427301,0.83680702,224.06,223.82,34.35947263]
[1733775427501,0.83680702,224.06,223.78,0.12549]
[1733775427805,5.0,223.98,223.71,34.35947263]
[1733775428133,0.83759445,223.97,223.7,23.776884]
[1733775428341,0.12549,223.96,223.71,34.35947263]
[1733775428640,0.12549,223.89,223.61,34.35947263]
[1733775428801,0.83795314,223.89,223.7,34.35947263]
[1733775429122,23.776884,223.95,223.72,34.35947263]
[1733775429304,0.83763827,223.94,223.71,0.12549]
[1733775429506,5.0,223.9,223.66,34.35947263]
[1733775429706,24.74030608,223.89,223.64,34.35947263]
[1733775429916,0.12549,223.83,223.58,34.35947263]
[1733775430098,0.83821157,223.83,223.62,34.35947263]
[1733775430426,0.83821157,223.83,223.64,34.35947263]
[1733775430809,0.83821157,223.83,223.62,34.35947263]
[1733775431005,0.83821157,223.83,223.64,34.35947263]
[1733775431308,0.83782922,223.86,223.66,34.35947263]
[1733775431529,0.83782922,223.86,223.52,39.35947263]
[1733775431530,0.12549,223.85,223.64,34.35947263]
[1733775431702,0.838014,223.84,223.62,34.35947263]
[1733775431903,0.83797994,223.89,223.7,34.35947263]
[1733775432134,0.83772496,224.0,223.74,34.35947263]
[1733775432514,0.83772496,224.0,223.8,34.35947263]
[1733775432835,0.83772496,224.0,223.74,34.35947263]
[1733775433036,0.83772496,224.0,223.72,34.35947263]
[1733775433334,5.0,223.97,223.68,34.35947263]
[1733775433498,0.12549,223.95,223.68,34.35947263]
[1733775433703,10.0,223.97,223.66,34.35947263]
[1733775433704,0.12549,223.9,223.66,34.35947263]
[1733775433926,0.9634038,223.9,223.66,34.35947263]
[1733775434113,0.9634038,223.9,223.56,70.0]
[1733775434114,0.8379138,223.9,223.7,34.35947263]
[1733775434327,20.0,223.86,223.64,34.35947263]
[1733775434535,20.0,223.78,223.58,34.35947263]
[1733775434836,0.83816449,223.77,223.6,34.35947263]
[1733775435417,20.0,223.73,223.54,34.35947263]
[1733775435627,24.027864,223.68,223.44,34.35947263]
[1733775435804,20.0,223.61,223.42,34.35947263]
[1733775436008,20.0,223.61,223.3,104.35947263]
[1733775436009,0.83880953,223.6,223.38,34.35947263]
[1733775436439,0.25098,223.55,223.34,34.35947263]
[1733775436603,0.25098,223.55,223.27,27.5153896]
[1733775436604,20.0,223.52,223.3,34.35947263]
[1733775436809,24.027864,223.5,223.28,34.35947263]
[1733775437020,0.83933861,223.49,223.26,34.35947263]
[1733775437223,23.776884,223.47,223.24,34.35947263]
[1733775437532,20.0,223.44,223.28,34.35947263]
[1733775437734,0.83930487,223.5,223.33,34.35947263]
[1733775437939,20.0,223.48,223.35,34.35947263]
[1733775438110,20.0,223.48,223.33,34.35947263]
[1733775438315,0.83904518,223.47,223.31,34.35947263]
[1733775438735,20.0,223.48,223.25,40.53]
[1733775438736,9.0812,223.51,223.33,34.35947263]
[1733775438948,0.83899253,223.5,223.35,34.35947263]
[1733775439238,0.83899253,223.5,223.25,115.53]
[1733775439239,0.83904248,223.62,223.4,31.90657463]
[1733775439547,0.83904248,223.62,223.44,31.90657463]
[1733775440040,0.83865634,223.74,223.57,31.90657463]
[1733775440414,0.67717033,223.81,223.56,23.902374]
[1733775440615,0.83806942,223.74,223.55,31.90657463]
[1733775440812,0.83806942,223.74,223.51,31.90657463]
[1733775441009,0.83806942,223.74,223.53,31.90657463]
[1733775441211,0.83806942,223.74,223.55,31.90657463]
[1733775441436,0.83806942,223.74,223.49,32.03206463]
[1733775441637,0.12549,223.73,223.45,31.90657463]
[1733775441840,5.12549,223.71,223.4,31.90657463]
[1733775442011,5.12549,223.71,223.35,13.78500893]
[1733775442012,0.83881767,223.7,223.47,31.90657463]
[1733775442217,224.06753664,223.78,223.47,31.90657463]
[1733775442218,0.838495,223.74,223.48,0.12549]
[1733775442542,23.902374,223.73,223.48,0.12549]
[1733775442854,20.0,223.6,223.39,31.90657463]
[1733775443017,0.8387832,223.59,223.43,31.90657463]
[1733775443743,0.8387832,223.59,223.32,5.0]
[1733775443744,0.12549,223.6,223.38,31.90657463]
[1733775443954,20.0,223.58,223.36,31.90657463]
[1733775444117,20.0,223.58,223.31,27.1]
[1733775444118,0.83897025,223.57,223.38,31.90657463]
[1733775444519,0.83897025,223.57,223.39,0.12549]
[1733775444718,0.83897025,223.57,223.36,31.90657463]
[1733775444922,0.83897025,223.57,223.34,31.90657463]
[1733775445120,0.83905746,223.58,223.42,31.90657463]
[1733775445349,0.83905746,223.58,223.39,0.12549]
[1733775445350,0.83905746,223.58,223.44,31.90657463]
[1733775445546,5.0,223.77,223.39,0.12549]
[1733775445547,0.8387314,223.72,223.48,31.90657463]
[1733775445726,0.8387314,223.72,223.37,75.0]
[1733775445727,0.8387314,223.72,223.5,31.90657463]
[1733775446053,17.902187,223.67,223.46,31.90657463]
[1733775446236,0.83875147,223.66,223.45,0.12549]
[1733775446558,0.83875147,223.66,223.48,31.90657463]
[1733775447053,0.83875147,223.66,223.52,31.90657463]
[1733775447254,5.3653,223.75,223.39,23.776884]
[1733775447255,0.83856617,223.74,223.56,31.90657463]
[1733775447432,17.898097,223.72,223.56,31.90657463]
[1733775447635,0.83831405,223.71,223.5,31.90657463]
[1733775447949,0.83831405,223.71,223.54,31.90657463]
[1733775448152,0.83831405,223.71,223.5,13.43]
[1733775448153,5.3653,223.75,223.6,31.90657463]
[1733775448329,0.83813058,223.74,223.54,31.90657463]
[1733775448930,0.83813058,223.74,223.56,31.90657463]
[1733775449138,0.83813058,223.74,223.58,31.90657463]
[1733775449443,5.3653,223.75,223.58,31.90657463]
[1733775449662,0.83807926,223.74,223.56,31.90657463]
[1733775449823,0.83807926,223.74,223.54,31.90657463]
[1733775450030,0.83807926,223.74,223.56,31.90657463]
[1733775450324,0.83807926,223.74,223.54,31.90657463]
[1733775450626,0.83807926,223.74,223.52,31.90657463]
[1733775451045,23.902374,223.73,223.48,31.90657463]
[1733775451233,0.12549,223.67,223.44,31.90657463]
[1733775451534,20.0,223.6,223.4,31.90657463]
[1733775451736,20.0,223.55,223.38,31.90657463]
[1733775451944,20.0,223.6,223.44,31.90657463]
[1733775452144,0.83870765,223.59,223.44,31.90657463]
[1733775452457,20.0,223.67,223.48,31.90657463]
[1733775452672,20.0,223.62,223.42,31.90657463]
[1733775452852,20.0,223.58,223.44,31.90657463]
[1733775453354,23.776884,223.65,223.46,31.90657463]
[1733775453559,20.0,223.62,223.42,32.03206463]
[1733775453768,20.0,223.62,223.46,31.90657463]
[1733775453926,0.83858607,223.61,223.44,31.90657463]
[1733775454258,20.0,223.66,223.45,31.90657463]
[1733775454565,0.83857713,223.65,223.49,31.90657463]
[1733775454735,0.83853098,223.74,223.51,31.90657463]
[1733775454939,0.83853098,223.74,223.53,31.90657463]
[1733775455266,0.83853098,223.74,223.57,31.90657463]
[1733775455450,5.3653,223.75,223.59,31.90657463]
[1733775455641,0.83811021,223.74,223.55,31.90657463]
[1733775455846,0.83811021,223.74,223.56,0.12549]
[1733775456167,31.85629133,223.66,223.57,31.85629133]
[1733775456342,31.85629133,223.64,223.55,31.85629133]
[1733775456957,31.85629133,223.7,223.63,31.85629133]
[1733775457138,5.0,223.91,223.67,31.85629133]
[1733775457139,31.85629133,223.76,223.67,31.85629133]
[1733775457632,31.85629133,223.76,223.68,0.12549]
[1733775457950,31.85629133,223.8,223.72,0.12549]
[1733775458269,31.85629133,223.76,223.68,31.85629133]
[1733775458433,31.85629133,223.77,223.69,0.12549]
[1733775458636,0.83765921,223.88,223.65,0.12549]
[1733775458834,5.4443,223.91,223.66,20.0]
[1733775459161,0.83756796,223.9,223.67,0.25098]
[1733775459590,0.83756796,223.9,223.63,20.0]
[1733775459591,34.33055086,223.8,223.72,34.33055086]
[1733775459797,34.33055086,223.78,223.68,34.33055086]
[1733775459960,34.33055086,223.8,223.7,34.33055086]
[1733775460161,34.33055086,223.85,223.68,34.33055086]
[1733775460162,34.33055086,223.78,223.68,34.33055086]
[1733775460378,34.33055086,223.78,223.7,34.33055086]
[1733775460798,34.33055086,223.78,223.68,34.33055086]
[1733775461087,34.33055086,223.76,223.68,34.33055086]
[1733775461259,34.33055086,223.7,223.59,34.33055086]
[1733775461460,34.33055086,223.63,223.53,34.33055086]
[1733775461662,34.33055086,223.57,223.47,34.33055086]
[1733775461865,0.12549,223.68,223.36,41.30039853]
[1733775462068,23.776884,223.64,223.36,13.78500893]
[1733775462265,34.33055086,223.49,223.4,34.33055086]
[1733775462677,0.83878383,223.63,223.45,13.43]
[1733775462888,34.33055086,223.53,223.42,34.33055086]
[1733775463064,34.33055086,223.55,223.46,34.33055086]
[1733775463971,34.33055086,223.57,223.48,34.33055086]
[1733775464385,34.33055086,223.55,223.44,34.33055086]
[1733775464764,34.33055086,223.51,223.42,34.33055086]
[1733775465069,0.83855038,223.62,223.3,34.33055086]
[1733775465070,34.33055086,223.49,223.4,34.33055086]
[1733775465263,34.33055086,223.47,223.38,34.33055086]
[1733775465465,34.33055086,223.45,223.36,34.33055086]
[1733775465676,34.33055086,223.41,223.32,34.33055086]
[1733775466181,34.33055086,223.39,223.3,34.33055086]
[1733775466362,0.83898714,223.51,223.28,61.43055086]
[1733775466363,34.33055086,223.37,223.28,61.43055086]
[1733775466563,34.33055086,223.41,223.33,34.33055086]
[1733775466762,0.83898714,223.51,223.33,34.33055086]
[1733775466962,34.33055086,223.52,223.26,11.1975]
[1733775466963,34.33055086,223.45,223.38,0.12549]
[1733775467187,34.33055086,223.47,223.39,34.33055086]
[1733775467700,34.33055086,223.49,223.39,34.33055086]
[1733775468090,34.33055086,223.49,223.4,34.33055086]
[1733775468272,34.33055086,223.45,223.38,34.33055086]
[1733775468697,34.33055086,223.43,223.36,34.33055086]
[1733775468913,34.33055086,223.43,223.34,34.33055086]
[1733775469701,34.33055086,223.41,223.34,34.33055086]
[1733775469892,34.33055086,223.43,223.34,34.33055086]
[1733775470685,34.33055086,223.41,223.32,34.33055086]
[1733775470894,0.83910644,223.51,223.32,34.33055086]
[1733775470895,34.33055086,223.39,223.32,34.33055086]
[1733775471202,0.83910644,223.51,223.24,34.33055086]
[1733775471203,34.33055086,223.33,223.24,34.33055086]
[1733775471408,34.33055086,223.27,223.2,34.33055086]
[1733775471606,0.8394575,223.4,223.13,34.33055086]
[1733775471607,34.33055086,223.21,223.13,34.33055086]
[1733775472104,34.33055086,223.21,223.09,0.6684974]
[1733775472282,34.33055086,223.21,223.12,34.33055086]
[1733775472474,34.33055086,223.17,223.09,0.6684974]
[1733775473092,34.33055086,223.19,223.1,34.33055086]
[1733775474507,34.33055086,223.19,223.12,34.33055086]
[1733775475012,34.33055086,223.17,223.09,0.6684974]
[1733775475378,34.33055086,223.15,223.09,0.6684974]
[1733775475608,0.83989502,223.29,223.09,0.6684974]
[1733775475609,34.33055086,223.11,223.09,0.6684974]
[1733775477477,35.17105762,223.1,223.09,0.6684974]
[1733775477718,34.33055086,223.11,223.09,0.6684974]
[1733775478395,34.33055086,223.13,223.09,0.6684974]
[1733775478792,34.33055086,223.3,223.09,0.6684974]
[1733775478793,34.33055086,223.17,223.09,0.6684974]
[1733775479093,34.33055086,223.21,223.12,34.33055086]
[1733775479289,34.33055086,223.21,223.14,34.33055086]
[1733775479486,34.33055086,223.21,223.12,34.33055086]
[1733775479683,34.33055086,223.19,223.1,34.33055086]
[1733775479995,34.33055086,223.19,223.12,34.33055086]
[1733775480298,34.33055086,223.2,223.11,34.33055086]
[1733775480511,0.84025257,223.29,223.09,0.6684974]
[1733775480706,0.12549,223.28,223.09,0.6684974]
[1733775480876,0.84018889,223.27,223.09,0.6684974]
[1733775481082,34.33055086,223.3,223.1,0.25098]
[1733775481083,0.84006776,223.29,223.1,0.25098]
[1733775481588,34.33055086,223.23,223.15,34.33055086]
[1733775481895,17.925948,223.35,223.1,0.25098]
[1733775481896,34.33055086,223.27,223.19,34.33055086]
[1733775482082,0.83987234,223.33,223.1,11.45658]
[1733775482083,34.33055086,223.25,223.17,34.33055086]
[1733775482416,34.33055086,223.19,223.11,34.33055086]
[1733775482590,34.33055086,223.23,223.13,34.33055086]
[1733775482792,34.33055086,223.29,223.2,34.33055086]
[1733775483344,34.33055086,223.33,223.26,34.33055086]
[1733775483607,34.33055086,223.27,223.1,0.12549]
[1733775483839,34.33055086,223.26,223.18,34.33055086]
[1733775484178,0.83977388,223.4,223.16,34.33055086]
[1733775484179,34.33055086,223.24,223.16,34.33055086]
[1733775484438,34.33055086,223.22,223.12,34.33055086]
[1733775484720,34.33055086,223.18,223.1,34.33055086]
[1733775485014,34.33055086,223.14,223.09,0.6220054]
[1733775485215,34.33055086,223.19,223.09,0.6220054]
[1733775485216,34.33055086,223.12,223.09,0.6220054]
[1733775485516,34.33055086,223.16,223.09,0.6220054]
[1733775485717,34.33055086,223.1,223.09,0.6220054]
[1733775486227,23.776884,223.09,222.94,0.534333]
[1733775486515,34.33055086,223.01,222.94,0.534333]
[1733775486686,3.14626879,223.01,222.94,0.534333]
[1733775486886,5.7364,223.21,222.94,0.534333]
[1733775486887,23.776884,223.04,222.94,0.534333]
[1733775487085,20.0,223.01,222.94,0.534333]
[1733775487699,23.776884,223.07,222.94,0.534333]
[1733775487905,20.0,223.08,222.94,0.534333]
[1733775487906,0.84076429,223.06,222.94,0.534333]
[1733775488087,20.0,223.08,222.95,34.69923617]
[1733775488286,20.0,223.12,222.99,34.57374617]
[1733775488514,0.84045471,223.14,222.98,0.12549]
[1733775488679,0.84041306,223.2,223.04,0.12549]
[1733775488880,5.0,223.27,223.02,0.12549]
[1733775489107,0.84037002,223.2,222.95,34.57374617]
[1733775489295,0.12549,223.19,222.96,0.66533638]
[1733775489502,0.12549,223.17,222.96,0.66533638]
[1733775489727,0.84056893,223.16,222.96,0.66533638]
[1733775489886,0.84056893,223.16,223.02,0.25098]
[1733775490083,5.7364,223.21,222.99,0.6647905]
[1733775490084,0.84030858,223.2,222.99,0.6647905]
[1733775490322,0.84030858,223.2,222.97,34.57374617]
[1733775490487,0.84030858,223.2,222.99,34.57374617]
[1733775490688,0.12549,223.19,223.0,0.66511548]